bitfinex-derivatives/quotes_SOLF0:USTF0_20250820
["timestamp","ask_amount","ask_price","bid_price","bid_amount"]
[1755652426494,3.0885976,177.82,177.75,10.43788633]
[1755652426684,3.0885976,177.82,177.75,4.81198633]
[1755652427593,3.0885976,177.82,177.75,0.38]
[1755652427788,3.0885976,177.82,177.75,4.81198633]
[1755652428687,3.0885976,177.82,177.75,10.43768633]
[1755652429693,3.0885976,177.82,177.75,4.43198633]
[1755652431192,3.0885976,177.82,177.74,141.24]
[1755652433397,3.0885976,177.82,177.74,140.86]
[1755652433694,3.0885976,177.82,177.75,4.81198633]
[1755652434096,0.0385976,177.82,177.76,6.0154]
[1755652435398,0.0385976,177.82,177.76,0.39]
[1755652437197,3.05,177.81,177.75,4.43198633]
[1755652438497,3.05,177.81,177.74,140.86]
[1755652440199,3.05,177.81,177.74,146.8762]
[1755652440394,3.05,177.81,177.74,141.25]
[1755652440599,0.0385976,177.82,177.75,4.82198633]
[1755652440792,0.0385976,177.82,177.76,0.39]
[1755652440995,0.0385976,177.82,177.79,0.39]
[1755652441695,2.9785976,177.82,177.76,4.82198633]
[1755652441998,0.0385976,177.82,177.76,9.45228353]
[1755652442399,0.0385976,177.82,177.76,15.07768353]
[1755652442792,0.0385976,177.82,177.76,9.45228353]
[1755652443597,0.0385976,177.82,177.76,15.07788353]
[1755652444298,0.0385976,177.82,177.76,9.45228353]
[1755652444503,2.94,177.81,177.75,4.6302972]
[1755652445300,2.94,177.81,177.75,10.2561972]
[1755652445602,0.0385976,177.82,177.76,5.0202972]
[1755652446302,2.94,177.8,177.76,4.6302972]
[1755652446511,2.94,177.79,177.76,4.6302972]
[1755652446909,0.0385976,177.82,177.76,4.6302972]
[1755652447104,2.94,177.81,177.76,4.6302972]
[1755652447309,0.0385976,177.82,177.76,4.6302972]
[1755652447608,2.94,177.79,177.76,4.6302972]
[1755652448207,2.94,177.79,177.74,152.62402012]
[1755652448208,2.94,177.79,177.75,4.6302972]
[1755652448511,2.94,177.81,177.75,4.6302972]
[1755652448804,0.03923625,177.79,177.74,145.4902972]
[1755652449103,2.94,177.78,177.74,140.86]
[1755652449305,2.94,177.76,177.74,140.86]
[1755652449704,2.94,177.76,177.73,4.6302972]
[1755652450909,0.03923625,177.79,177.71,4.6302972]
[1755652451105,2.94,177.78,177.7,364.11689893]
[1755652451504,0.04200189,177.76,177.7,364.11689893]
[1755652452911,0.04200189,177.76,177.7,369.74439893]
[1755652454299,0.04200189,177.76,177.72,0.39]
[1755652454501,2.98200189,177.76,177.72,0.39]
[1755652457311,0.04200189,177.76,177.74,0.39]
[1755652457615,0.04200189,177.76,177.73,4.43198633]
[1755652457815,0.04200189,177.76,177.75,6.0159]
[1755652458012,2.94,177.82,177.75,6.0159]
[1755652458203,2.94,177.82,177.76,4.43198633]
[1755652460020,2.94,177.82,177.74,140.56]
[1755652460712,2.94,177.82,177.74,146.1862]
[1755652460917,2.94,177.82,177.74,146.5762]
[1755652461117,2.94,177.82,177.74,140.95]
[1755652461420,2.94,177.82,177.76,4.43198633]
[1755652462515,2.94,177.82,177.76,4.82198633]
[1755652462718,2.94,177.88,177.77,5.6253]
[1755652463823,2.94,177.88,177.78,6.0149]
[1755652464221,2.94,177.88,177.78,0.39]
[1755652471831,2.94,177.88,177.8,0.39]
[1755652472031,2.94,177.88,177.82,4.82198633]
[1755652472533,2.94,177.88,177.82,10.44558633]
[1755652472728,3.03,177.91,177.79,4.6302972]
[1755652472925,3.03,177.91,177.78,5.0202972]
[1755652473232,3.03,177.89,177.78,0.39]
[1755652473624,3.03,177.89,177.78,5.6249]
[1755652473933,3.03,177.89,177.79,0.39]
[1755652474136,3.03,177.89,177.78,4.6302972]
[1755652474437,3.03,177.89,177.8,4.82198633]
[1755652475920,3.03,177.89,177.8,0.39]
[1755652477734,3.03,177.89,177.83,4.43198633]
[1755652478034,3.03,177.89,177.85,0.39]
[1755652480128,3.03,177.88,177.84,0.39]
[1755652480339,3.03,177.91,177.85,0.39]
[1755652481732,3.03,177.91,177.83,4.43198633]
[1755652483036,3.03,177.91,177.82,0.39]
[1755652483229,3.03,177.91,177.8,4.43198633]
[1755652484336,3.03,177.91,177.81,0.39]
[1755652485038,3.03,177.91,177.84,0.39]
[1755652486130,3.03,177.94,177.86,4.43198633]
[1755652486336,3.03,177.94,177.87,0.39]
[1755652488840,3.03,177.94,177.79,6.13792012]
[1755652488841,3.03,177.94,177.84,0.39]
[1755652489233,3.03,177.94,177.83,4.43198633]
[1755652490046,3.03,177.94,177.83,4.82198633]
[1755652490435,3.03,177.94,177.86,4.43198633]
[1755652490738,3.03,177.94,177.87,0.39]
[1755652491737,3.03,177.94,177.86,4.43198633]
[1755652491936,3.03,177.94,177.84,0.39]
[1755652493937,3.03,177.94,177.87,0.0425294]
[1755652494138,0.04216885,177.91,177.87,0.0425294]
[1755652494635,3.03,177.89,177.87,0.0425294]
[1755652496143,0.04216885,177.91,177.87,0.0425294]
[1755652496343,3.07216885,177.91,177.87,0.4325294]
[1755652496942,3.07216885,177.91,177.87,0.0425294]
[1755652497248,0.04216885,177.91,177.89,0.39]
[1755652498441,3.12,177.9,177.87,0.0425294]
[1755652498645,3.12,177.89,177.87,0.0425294]
[1755652500351,0.04216885,177.91,177.89,0.39]
[1755652502851,3.16216885,177.91,177.87,0.4325294]
[1755652503046,3.12,177.9,177.87,0.0425294]
[1755652503645,3.12,177.89,177.87,0.0425294]
[1755652504740,0.04216885,177.91,177.87,0.0425294]
[1755652505042,3.12,177.88,177.87,0.0425294]
[1755652506643,0.04216885,177.91,177.87,0.0425294]
[1755652507043,0.04216885,177.91,177.88,0.39]
[1755652507450,0.04216885,177.91,177.89,0.39]
[1755652508449,0.04216885,177.91,177.9,0.39]
[1755652509655,0.04216885,177.91,177.87,0.0425294]
[1755652509852,3.12,177.9,177.87,0.0425294]
[1755652510064,3.12,177.89,177.87,0.0425294]
[1755652510254,3.12,177.88,177.87,0.0425294]
[1755652510459,0.04216885,177.91,177.87,0.0425294]
[1755652510851,3.12,177.9,177.87,0.0425294]
[1755652511055,0.04216885,177.91,177.87,0.0425294]
[1755652511357,3.12,177.88,177.87,0.0425294]
[1755652512849,3.12,177.9,177.87,0.0425294]
[1755652513759,3.12,177.88,177.87,0.0425294]
[1755652514157,3.12,177.88,177.79,4.63735126]
[1755652514357,3.12,177.88,177.76,5.06735126]
[1755652514558,3.12,177.88,177.77,10.26265126]
[1755652514753,3.12,177.88,177.77,10.69265126]
[1755652514957,3.12,177.88,177.77,5.06735126]
[1755652515460,0.04302403,177.84,177.77,5.06735126]
[1755652516561,3.12,177.83,177.74,5.06735126]
[1755652516751,3.12,177.83,177.74,0.43]
[1755652517156,0.04252175,177.8,177.74,0.43]
[1755652517461,3.16252175,177.8,177.74,0.43]
[1755652522257,0.04252175,177.8,177.74,0.43]
[1755652522768,0.04252175,177.8,177.74,6.0563]
[1755652522962,0.04252175,177.8,177.74,0.43]
[1755652525362,0.04252175,177.8,177.76,0.43]
[1755652525669,0.04252175,177.8,177.72,4.63735126]
[1755652525870,3.16252175,177.8,177.74,0.43]
[1755652526371,0.04252175,177.8,177.75,5.626]
[1755652526772,0.04252175,177.8,177.77,0.43]
[1755652527271,0.04252175,177.8,177.78,0.43]
[1755652528972,0.04252175,177.8,177.75,5.626]
[1755652529169,0.04252175,177.8,177.76,0.45]
[1755652529372,0.04252175,177.8,177.77,0.45]
[1755652531373,2.96252175,177.8,177.74,6.0764]
[1755652532473,0.04252175,177.8,177.76,0.45]
[1755652532663,0.04252175,177.8,177.77,0.45]
[1755652532862,2.96252175,177.8,177.75,5.6262]
[1755652533062,2.96252175,177.8,177.75,6.0762]
[1755652533469,2.96252175,177.8,177.75,0.45]
[1755652533671,2.96252175,177.8,177.76,0.45]
[1755652534466,2.96252175,177.8,177.75,5.6262]
[1755652534674,2.96252175,177.8,177.76,0.44]
[1755652534868,2.96252175,177.8,177.75,5.6262]
[1755652535075,2.96252175,177.8,177.77,0.44]
[1755652536074,2.96252175,177.8,177.75,5.6262]
[1755652536274,2.96252175,177.8,177.76,0.44]
[1755652536572,0.04252175,177.8,177.74,4.42978557]
[1755652536771,4.42978557,177.87,177.74,4.42978557]
[1755652536772,2.92,177.87,177.78,0.44]
[1755652536976,2.92,177.9,177.83,0.44]
[1755652537171,2.92,177.9,177.86,0.44]
[1755652537370,2.92,177.97,177.85,4.42978557]
[1755652537875,2.92,177.97,177.85,10.05278557]
[1755652538874,2.92,177.97,177.85,4.42978557]
[1755652539179,2.92,177.97,177.85,10.05268557]
[1755652539475,2.92,177.97,177.85,10.49268557]
[1755652541178,2.92,177.97,177.85,4.86978557]
[1755652545782,2.92,177.97,177.85,10.49278557]
[1755652552789,2.92,177.97,177.85,4.86978557]
[1755652553182,4.42978557,177.92,177.8,0.44]
[1755652553383,2.92,177.91,177.8,0.44]
[1755652553582,4.42978557,177.89,177.8,0.44]
[1755652553889,2.92,177.88,177.77,0.44]
[1755652555884,2.92,177.88,177.77,5.6256]
[1755652556090,2.92,177.88,177.78,0.44]
[1755652558198,2.92,177.88,177.76,378.0]
[1755652558695,2.92,177.88,177.75,0.44]
[1755652560002,2.92,177.88,177.76,0.44]
[1755652560195,2.92,177.88,177.78,0.44]
[1755652561102,2.92,177.88,177.75,0.44]
[1755652561501,7.34978557,177.88,177.75,0.44]
[1755652561702,3.03,177.87,177.75,0.44]
[1755652562101,3.03,177.87,177.71,146.39652406]
[1755652562102,3.03,177.84,177.72,0.44]
[1755652564205,6.27695106,177.89,177.69,9.07770546]
[1755652564206,3.03,177.81,177.69,0.44]
[1755652564603,4.42978557,177.79,177.69,0.44]
[1755652564799,3.03,177.78,177.69,0.44]
[1755652565705,3.03,177.78,177.66,4.42978557]
[1755652566002,3.03,177.78,177.67,0.44]
[1755652568000,3.03,177.78,177.68,0.44]
[1755652571211,0.03584351,177.75,177.68,0.44]
[1755652571711,3.03,177.74,177.7,0.0366038]
[1755652571912,3.03,177.72,177.7,0.0366038]
[1755652572308,3.03,177.76,177.7,0.0366038]
[1755652572510,0.03974645,177.73,177.71,0.44]
[1755652574911,0.03974645,177.73,177.7,0.0366038]
[1755652575118,0.03974645,177.73,177.72,0.44]
[1755652577017,6.27695106,177.91,177.73,0.4]
[1755652577322,3.03,177.83,177.75,4.42978557]
[1755652577518,3.03,177.83,177.76,0.4]
[1755652577820,3.03,177.83,177.73,4.42978557]
[1755652578015,3.03,177.83,177.73,4.82978557]
[1755652578319,3.03,177.83,177.76,0.03636898]
[1755652583226,3.03,177.81,177.76,0.03636898]
[1755652583627,3.03,177.81,177.7,0.4]
[1755652583824,3.03,177.8,177.77,0.03768727]
[1755652584127,3.03,177.82,177.77,0.4]
[1755652584424,3.03,177.8,177.77,0.04022043]
[1755652585422,3.03,177.84,177.77,0.44022043]
[1755652587826,3.03,177.84,177.77,0.04022043]
[1755652592225,7.45978557,177.84,177.77,0.04022043]
[1755652592424,2.89,177.83,177.77,0.04022043]
[1755652597631,0.97920594,177.85,177.77,0.43022043]
[1755652597833,2.89,177.86,177.77,0.43022043]
[1755652598631,2.89,177.86,177.78,0.39]
[1755652606334,2.89,177.86,177.77,0.04022043]
[1755652606533,2.89,177.85,177.77,0.04022043]
[1755652606736,2.89,177.82,177.77,0.04022043]
[1755652606940,4.42978557,177.83,177.77,0.04022043]
[1755652607139,4.42978557,177.83,177.73,0.39]
[1755652607344,2.89,177.82,177.73,0.39]
[1755652607542,4.42978557,177.83,177.78,0.03752794]
[1755652607845,2.89,177.8,177.78,0.03752794]
[1755652610146,4.42978557,177.83,177.78,0.03752794]
[1755652610448,2.89,177.81,177.78,0.03752794]
[1755652610644,2.89,177.8,177.78,0.03752794]
[1755652614142,4.42978557,177.83,177.78,0.03752794]
[1755652614341,2.89,177.79,177.78,0.03752794]
[1755652616250,3.45,177.79,177.71,0.39]
[1755652616449,2.89,177.79,177.71,0.39]
[1755652617944,4.42978557,177.82,177.71,0.39]
[1755652618139,2.89,177.82,177.71,0.39]
[1755652618341,2.89,177.82,177.72,4.42978557]
[1755652618541,2.89,177.82,177.73,0.43]
[1755652619948,7.31978557,177.82,177.73,0.43]
[1755652620143,2.92,177.81,177.73,0.43]
[1755652621346,2.92,177.81,177.68,217.36181881]
[1755652621347,2.92,177.84,177.75,0.43]
[1755652621543,2.92,177.84,177.7,6.19652406]
[1755652621544,4.42978557,177.82,177.71,0.43]
[1755652621743,2.92,177.81,177.71,0.43]
[1755652621947,2.92,177.81,177.71,4.66355139]
[1755652622154,2.92,177.81,177.72,0.43]
[1755652627257,2.92,177.81,177.71,4.42978557]
[1755652627461,2.92,177.81,177.72,0.43]
[1755652627954,2.92,177.81,177.71,4.42978557]
[1755652628157,2.92,177.81,177.71,4.85978557]
[1755652628551,2.92,177.81,177.71,0.43]
[1755652629355,6.27695106,177.84,177.68,4.66355139]
[1755652629356,2.92,177.79,177.68,4.66355139]
[1755652629569,2.92,177.76,177.67,5.09355139]
[1755652629859,2.92,177.76,177.67,0.43]
[1755652637274,2.92,177.76,177.64,4.86978557]
[1755652637572,2.92,177.76,177.65,0.44]
[1755652641479,2.92,177.73,177.65,0.44]
[1755652641872,2.92,177.73,177.62,140.2]
[1755652642069,2.92,177.73,177.62,140.64]
[1755652642276,2.92,177.7,177.62,0.44]
[1755652643975,2.92,177.7,177.58,0.44]
[1755652644568,2.92,177.67,177.58,0.44]
[1755652649869,4.42978557,177.68,177.58,0.44]
[1755652649870,2.94,177.71,177.6,0.45]
[1755652650483,2.94,177.71,177.61,4.42978557]
[1755652650783,2.94,177.71,177.62,0.45]
[1755652651482,2.94,177.71,177.62,5.6301]
[1755652651681,2.94,177.71,177.63,0.45]
[1755652652078,4.42978557,177.74,177.66,0.45]
[1755652652079,2.94,177.74,177.66,0.45]
[1755652652770,2.94,177.74,177.66,6.0788]
[1755652652975,2.94,177.74,177.67,0.45]
[1755652653281,2.94,177.77,177.68,0.45]
[1755652653580,2.94,177.73,177.62,0.45]
[1755652655076,2.94,177.73,177.63,0.45]
[1755652656781,2.94,177.73,177.64,0.45]
[1755652657479,2.94,177.73,177.65,0.45]
[1755652658278,2.94,177.73,177.63,4.42978557]
[1755652658473,2.94,177.73,177.62,0.45]
[1755652660083,2.94,177.73,177.62,6.0801]
[1755652662391,2.94,177.73,177.62,0.45]
[1755652662888,2.94,177.7,177.58,0.45]
[1755652664793,2.94,177.69,177.58,0.45]
[1755652672496,9.41542659,177.75,177.56,378.08]
[1755652672497,0.03900921,177.65,177.62,0.04238737]
[1755652672693,2.94,177.63,177.62,0.04238737]
[1755652672896,2.94,177.63,177.56,0.45]
[1755652678295,2.94,177.63,177.55,4.65671286]
[1755652678499,2.94,177.63,177.54,0.42]
[1755652678998,2.94,177.63,177.54,5.6325]
[1755652679204,2.94,177.63,177.55,0.42]
[1755652679502,0.03917885,177.6,177.58,0.42]
[1755652679803,0.03917885,177.6,177.57,0.03902362]
[1755652679804,0.03917885,177.6,177.59,0.42]
[1755652680498,3.17,177.67,177.59,0.42]
[1755652681805,3.17,177.67,177.61,0.03770859]
[1755652688308,7.59978557,177.67,177.61,0.03770859]
[1755652688508,4.42978557,177.67,177.61,0.03770859]
[1755652688901,3.17,177.63,177.61,0.03770859]
[1755652689103,3.17,177.62,177.61,0.03770859]
[1755652689305,4.42978557,177.67,177.61,0.03770859]
[1755652689800,3.17,177.63,177.61,0.03770859]
[1755652691202,3.17,177.62,177.61,0.03770859]
[1755652691505,3.17,177.66,177.61,0.03770859]
[1755652691705,4.42978557,177.7,177.61,0.03770859]
[1755652691706,3.17,177.69,177.61,0.03770859]
[1755652691906,3.17,177.69,177.6,0.42]
[1755652692509,3.17,177.69,177.63,0.0368532]
[1755652693810,3.17,177.66,177.63,0.0368532]
[1755652694208,3.17,177.66,177.56,145.12978557]
[1755652694209,3.17,177.66,177.56,140.7]
[1755652694408,3.17,177.66,177.63,0.04275606]
[1755652694610,0.0421508,177.63,177.56,0.42]
[1755652694913,3.17,177.62,177.56,0.42]
[1755652695310,0.0421508,177.63,177.56,0.42]
[1755652695813,3.2121508,177.63,177.58,0.04014319]
[1755652696011,3.17,177.62,177.58,0.04014319]
[1755652696315,3.17,177.61,177.58,0.51014319]
[1755652697818,3.2121508,177.63,177.58,0.04014319]
[1755652698013,3.2121508,177.63,177.59,0.47]
[1755652698409,3.2121508,177.63,177.6,0.47]
[1755652698618,0.0421508,177.63,177.58,0.04014319]
[1755652698919,0.0421508,177.63,177.61,0.47]
[1755652702118,0.0421508,177.63,177.58,0.04014319]
[1755652702319,3.2121508,177.63,177.6,0.47]
[1755652702517,0.0421508,177.63,177.58,0.04014319]
[1755652702823,3.17,177.61,177.58,0.04014319]
[1755652703027,0.0421508,177.63,177.58,0.04014319]
[1755652703028,3.17,177.6,177.58,0.04014319]
[1755652703422,0.0421508,177.63,177.58,0.04014319]
[1755652703622,0.0421508,177.63,177.58,0.51014319]
[1755652703623,3.17,177.62,177.58,0.51014319]
[1755652703822,3.17,177.62,177.59,0.47]
[1755652704028,0.0421508,177.63,177.61,0.47]
[1755652704523,0.0421508,177.63,177.62,0.47]
[1755652704925,0.0421508,177.63,177.58,0.04014319]
[1755652705219,3.2121508,177.63,177.59,0.47]
[1755652705412,3.2121508,177.63,177.6,0.47]
[1755652705413,0.0421508,177.63,177.6,0.47]
[1755652708313,3.1021508,177.63,177.6,0.47]
[1755652709223,3.1021508,177.63,177.58,0.04014319]
[1755652709224,0.0421508,177.63,177.58,0.04014319]
[1755652709418,0.0421508,177.63,177.58,0.52014319]
[1755652709619,3.06,177.61,177.58,0.52014319]
[1755652709922,3.06,177.61,177.58,0.04014319]
[1755652710125,3.06,177.62,177.58,0.04014319]
[1755652711320,0.0421508,177.63,177.58,0.04014319]
[1755652711533,3.06,177.59,177.58,0.04014319]
[1755652711721,3.06,177.62,177.58,0.04014319]
[1755652711920,0.0421508,177.63,177.58,0.04014319]
[1755652712122,3.06,177.6,177.58,0.04014319]
[1755652713320,0.0421508,177.63,177.58,0.04014319]
[1755652713517,3.06,177.59,177.58,0.04014319]
[1755652718332,3.06,177.62,177.58,0.52014319]
[1755652718531,0.0421508,177.63,177.58,0.52014319]
[1755652718727,3.06,177.61,177.58,0.52014319]
[1755652719128,3.06,177.61,177.58,0.04014319]
[1755652719932,3.06,177.61,177.58,0.52014319]
[1755652720142,3.1021508,177.63,177.59,0.48]
[1755652720833,3.1021508,177.63,177.6,0.48]
[1755652721830,0.0421508,177.63,177.6,0.48]
[1755652722427,0.0421508,177.63,177.59,0.48]
[1755652722629,3.06,177.74,177.62,0.44]
[1755652722827,3.06,177.74,177.65,0.44]
[1755652723932,3.06,177.74,177.68,0.04313933]
[1755652724533,3.06,177.73,177.62,0.44]
[1755652724730,3.06,177.73,177.61,4.42978557]
[1755652724731,3.06,177.72,177.69,0.03860927]
[1755652725231,3.06,177.72,177.66,0.44]
[1755652725434,9.33695106,177.77,177.69,0.03919467]
[1755652725733,3.06,177.76,177.69,0.03919467]
[1755652732836,3.06,177.76,177.7,0.44]
[1755652735044,3.06,177.8,177.71,0.43]
[1755652735740,3.06,177.8,177.74,0.04212963]
[1755652737237,3.06,177.8,177.75,0.43]
[1755652737442,3.06,177.8,177.74,0.04212963]
[1755652737746,3.06,177.79,177.74,0.04212963]
[1755652737941,3.06,177.79,177.75,0.43]
[1755652738537,382.86978557,177.84,177.75,0.43]
[1755652738738,3.04,177.83,177.74,0.04212963]
[1755652738936,3.04,177.83,177.72,0.43]
[1755652739131,3.04,177.83,177.77,0.03716979]
[1755652739534,4.42978557,177.81,177.77,0.03716979]
[1755652739739,3.04,177.8,177.69,0.43]
[1755652740339,3.04,177.84,177.75,0.47]
[1755652743644,3.04,177.84,177.75,6.0959]
[1755652744047,3.04,177.84,177.76,0.47]
[1755652748449,3.04,177.84,177.72,4.89978557]
[1755652748643,4.42978557,177.83,177.72,4.89978557]
[1755652748843,3.04,177.82,177.78,0.04002731]
[1755652749041,4.42978557,177.83,177.78,0.04002731]
[1755652749244,3.07875161,177.79,177.78,0.04002731]
[1755652757748,3.07875161,177.79,177.71,0.47]
[1755652760054,3.04,177.78,177.67,0.51]
[1755652760551,4.42978557,177.76,177.67,0.51]
[1755652760756,3.07694771,177.74,177.67,0.51]
[1755652761848,0.03694771,177.74,177.67,0.51]
[1755652763047,0.03694771,177.74,177.68,4.42978557]
[1755652763355,0.03694771,177.74,177.69,0.51]
[1755652763656,378.08,177.84,177.72,0.47]
[1755652763657,3.04,177.82,177.72,0.47]
[1755652763845,3.04,177.82,177.75,0.47]
[1755652764247,3.04,177.88,177.75,0.47]
[1755652767854,3.04,177.88,177.76,0.47]
[1755652768355,3.04,177.88,177.77,4.42978557]
[1755652768551,10.70673663,177.93,177.78,0.47]
[1755652768856,3.04,177.9,177.81,0.47]
[1755652771353,3.04,177.9,177.78,0.47]
[1755652771554,4.42978557,177.9,177.78,0.47]
[1755652771747,3.04,177.89,177.78,0.47]
[1755652771952,3.04,177.89,177.75,0.47]
[1755652772554,3.04,177.89,177.77,0.47]
[1755652773856,3.04,177.89,177.78,0.47]
[1755652775059,3.04,177.89,177.79,0.47]
[1755652776559,3.04,177.89,177.81,0.47]
[1755652778154,3.04,177.89,177.82,0.47]
[1755652778350,4.01876529,177.92,177.82,0.47]
[1755652779763,4.01876529,177.92,177.82,6.0937]
[1755652779965,3.04,177.92,177.83,4.42978557]
[1755652780163,3.04,177.92,177.84,0.47]
[1755652781261,3.04,177.92,177.84,6.0931]
[1755652781562,3.04,177.95,177.85,0.47]
[1755652781964,3.04,177.95,177.87,0.47]
[1755652782763,3.04,177.95,177.88,0.47]
[1755652783065,3.04,177.99,177.9,0.47]
[1755652783366,6.27695106,178.01,177.93,0.47]
[1755652783565,9.31695106,178.02,177.93,0.47]
[1755652783864,3.04,178.02,177.95,0.47]
[1755652784561,3.04,178.02,177.95,4.42978557]
[1755652789279,3.04,178.09,177.98,4.42978557]
[1755652789472,3.04,178.09,178.01,4.42978557]
[1755652789880,6.27695106,178.11,178.04,4.42978557]
[1755652790073,9.31695106,178.12,178.04,4.42978557]
[1755652790576,3.04,178.12,178.04,4.42978557]
[1755652791683,6.27695106,178.13,178.04,4.42978557]
[1755652791880,3.04,178.11,178.04,4.42978557]
[1755652794477,9.31695106,178.16,178.04,4.42978557]
[1755652794683,3.04,178.16,178.07,4.42978557]
[1755652797776,0.97736337,178.18,178.07,4.42978557]
[1755652797983,3.04,178.19,178.07,4.42978557]
[1755652800881,4.42978557,178.17,178.03,4.42978557]
[1755652801294,3.13,178.16,178.03,4.42978557]
[1755652802185,3.13,178.16,178.03,10.04688557]
[1755652802884,3.13,178.16,178.03,4.42978557]
[1755652803089,3.13,178.16,178.06,4.42978557]
[1755652803291,3.13,178.16,178.07,5.6158]
[1755652803591,3.13,178.16,178.06,4.42978557]
[1755652803788,3.13,178.16,178.08,5.6155]
[1755652804088,3.13,178.16,178.09,4.42978557]
[1755652806091,3.13,178.16,178.06,4.42978557]
[1755652806392,3.13,178.16,178.06,10.04598557]
[1755652806685,3.13,178.16,178.06,4.42978557]
[1755652807690,3.13,178.16,178.03,4.42978557]
[1755652808993,3.13,178.16,178.03,10.04688557]
[1755652810590,3.13,178.16,178.04,5.6168]
[1755652811792,3.13,178.16,178.06,4.42978557]
[1755652812292,3.13,178.16,178.09,4.42978557]
[1755652812690,3.13,178.16,178.09,10.04498557]
[1755652813685,3.13,178.2,178.12,4.42978557]
[1755652815190,139.74,178.25,178.18,4.42978557]
[1755652815191,3.13,178.25,178.18,4.42978557]
[1755652815394,3.13,178.25,178.09,139.62]
[1755652815595,3.13,178.25,178.12,4.42978557]
[1755652816396,3.13,178.25,178.1,4.42978557]
[1755652816593,3.13,178.22,178.11,10.96161166]
[1755652816795,3.13,178.22,178.12,10.96198886]
[1755652817099,3.13,178.22,178.1,10.04448557]
[1755652817291,3.13,178.22,178.11,10.96455963]
[1755652817598,3.13,178.22,178.12,22.78136431]
[1755652817791,3.13,178.22,178.13,18.11969894]
[1755652817992,3.13,178.22,178.14,18.11969894]
[1755652818196,4.42978557,178.2,178.15,18.11969894]
[1755652818392,3.13,178.19,178.16,14.93969894]
[1755652818596,3.13,178.19,178.17,9.34347352]
[1755652818796,3.13,178.19,178.13,4.66166537]
[1755652819095,4.42978557,178.2,178.14,4.64209382]
[1755652819299,3.13,178.16,178.15,4.64209382]
[1755652821596,3.69,178.16,178.15,4.64209382]
[1755652821806,3.69,178.16,178.09,4.66166537]
[1755652822004,3.13,178.16,178.1,4.58297013]
[1755652822298,3.13,178.16,178.11,4.58297013]
[1755652822504,4.42978557,178.17,178.12,4.58297013]
[1755652822805,3.13,178.14,178.13,4.58297013]
[1755652824499,3.13,178.14,178.07,9.10652406]
[1755652824500,3.13,178.14,178.08,4.66166537]
[1755652824701,3.13,178.13,178.09,4.58694436]
[1755652824998,3.13,178.13,178.1,4.58694436]
[1755652825199,3.13,178.13,178.08,4.66166537]
[1755652825200,3.13,178.13,178.11,4.58694436]
[1755652825399,3.13,178.13,178.12,4.58694436]
[1755652826110,3.69,178.13,178.06,4.66166537]
[1755652826307,3.13,178.09,178.07,4.59322562]
[1755652826504,4.42978557,178.11,178.08,4.59322562]
[1755652826815,4.42978557,178.11,178.03,4.66166537]
[1755652827108,3.13,178.1,178.03,4.66166537]
[1755652830407,4.42978557,178.2,177.98,387.01478609]
[1755652830408,7.41978557,178.14,178.05,4.66166537]
[1755652830612,7.41978557,178.14,178.07,7.74166537]
[1755652830815,7.41978557,178.14,178.08,7.51352746]
[1755652831110,2.99,178.13,178.09,7.51352746]
[1755652831310,2.99,178.13,178.1,7.51352746]
[1755652831501,2.99,178.13,178.11,5.20847174]
[1755652831700,2.99,178.13,178.12,2.02847174]